bitfinex/quotes_BTCUSD_20250127
["timestamp","ask_amount","ask_price","bid_price","bid_amount"]
[1737984243246,0.59748819,101140.0,101130.0,0.04749509]
[1737984243448,0.71865629,101140.0,101130.0,0.04749509]
[1737984243657,0.89748819,101140.0,101130.0,0.04749509]
[1737984244066,0.61748819,101140.0,101130.0,0.04749509]
[1737984244486,0.61948819,101140.0,101130.0,0.04749509]
[1737984244918,0.60948819,101140.0,101130.0,0.00079509]
[1737984245122,1.03682397,101140.0,101130.0,0.00079509]
[1737984245332,0.61682397,101140.0,101130.0,0.00079509]
[1737984245536,1.02282397,101140.0,101130.0,0.00079509]
[1737984245667,1.05182397,101140.0,101130.0,0.00079509]
[1737984245877,1.03182397,101140.0,101130.0,0.00079509]
[1737984246070,1.02282397,101140.0,101130.0,0.00079509]
[1737984246278,1.03182397,101140.0,101130.0,0.00079509]
[1737984246696,0.62182397,101140.0,101130.0,0.00079509]
[1737984247120,0.61582397,101140.0,101130.0,0.00079509]
[1737984247441,0.62082397,101140.0,101130.0,0.00079509]
[1737984247783,0.61182397,101140.0,101130.0,0.00079509]
[1737984248227,0.63082397,101140.0,101130.0,0.00079509]
[1737984248426,0.61582397,101140.0,101130.0,0.00079509]
[1737984248583,0.751323,101130.0,101120.0,0.0150937]
[1737984248787,1.01799757,101130.0,101120.0,0.0150937]
[1737984249025,1.00799757,101130.0,101120.0,0.0150937]
[1737984249225,1.01799757,101130.0,101120.0,0.0150937]
[1737984249471,0.79616567,101130.0,101120.0,0.02970307]
[1737984249683,0.81616567,101130.0,101120.0,0.02970307]
[1737984249912,0.39616567,101130.0,101120.0,0.0150937]
[1737984250126,0.98499757,101130.0,101120.0,0.0150937]
[1737984250334,0.71799757,101130.0,101120.0,0.0150937]
[1737984250543,0.69799757,101130.0,101120.0,0.0150937]
[1737984251146,0.61299757,101130.0,101120.0,0.0150937]
[1737984251591,1.01299757,101130.0,101120.0,0.0150937]
[1737984251794,1.03299757,101130.0,101120.0,0.0150937]
[1737984252002,0.77182947,101130.0,101120.0,7e-07]
[1737984252207,0.80418487,101130.0,101120.0,7e-07]
[1737984252411,0.83387358,101130.0,101120.0,7e-07]
[1737984252815,0.62299757,101130.0,101120.0,7e-07]
[1737984253027,0.97099757,101130.0,101120.0,7e-07]
[1737984253236,0.82216567,101130.0,101120.0,7e-07]
[1737984253447,0.84099757,101130.0,101120.0,7e-07]
[1737984253671,0.42499757,101130.0,101120.0,7e-07]
[1737984253879,0.44799757,101130.0,101120.0,7e-07]
[1737984254091,0.59599757,101130.0,101120.0,7e-07]
[1737984254294,0.9001699,101120.0,101110.0,0.0486]
[1737984254502,1.16634909,101120.0,101110.0,0.0012]
[1737984254703,1.22557909,101120.0,101110.0,0.0012]
[1737984255135,1.22557909,101120.0,101100.0,8e-07]
[1737984255136,0.7690168,101110.0,101100.0,8e-07]
[1737984255344,0.7690168,101110.0,101070.0,0.01680847]
[1737984255345,0.741397,101080.0,101070.0,0.01680847]
[1737984255547,1.18640809,101080.0,101070.0,0.01680847]
[1737984255754,1.0372649,101080.0,101070.0,0.01680847]
[1737984255961,0.98757619,101080.0,101070.0,0.01680847]
[1737984256172,1.00757619,101080.0,101070.0,0.01680847]
[1737984256810,1.02723975,101080.0,101070.0,0.01680847]
[1737984257017,1.02723975,101080.0,101010.0,0.45147734]
[1737984257018,0.15,101060.0,101010.0,0.28263844]
[1737984257222,0.14848,101030.0,101010.0,0.45989228]
[1737984257446,0.24581929,101030.0,101010.0,0.65787828]
[1737984257651,0.395906,101040.0,101020.0,0.197978]
[1737984257856,0.14847,101030.0,101020.0,0.24891573]
[1737984258069,0.14847,101030.0,101010.0,0.65787428]
[1737984258284,0.44379029,101030.0,101020.0,0.148485]
[1737984258489,0.24632206,101030.0,101020.0,0.148485]
[1737984258706,0.24632206,101030.0,101010.0,0.45989328]
[1737984258912,0.44429306,101030.0,101010.0,0.65788428]
[1737984259114,0.49678206,101030.0,101010.0,0.26190428]
[1737984259318,0.148485,101020.0,101010.0,0.31140728]
[1737984259499,0.64526206,101030.0,101010.0,0.45989828]
[1737984259737,0.09734729,101020.0,101010.0,0.08464744]
[1737984259954,0.24583229,101020.0,101010.0,0.08464744]
[1737984260166,0.56466419,101020.0,101010.0,0.12984744]
[1737984260586,0.56466419,101020.0,101010.0,0.08464744]
[1737984260795,0.87466419,101020.0,101010.0,0.08464744]
[1737984261007,0.9283121,101020.0,101010.0,0.08464744]
[1737984261219,1.120144,101020.0,101010.0,8.6e-07]
[1737984261445,1.179374,101020.0,101010.0,8.6e-07]
[1737984261650,0.273,101010.0,101000.0,8.6e-07]
[1737984261906,0.7613271,101010.0,101000.0,8.6e-07]
[1737984262157,0.58767919,101010.0,101000.0,8.6e-07]
[1737984262363,0.58767919,101010.0,100930.0,0.45160503]
[1737984262364,0.15,100950.0,100930.0,0.08463013]
[1737984262587,0.168632,100920.0,100910.0,1e-06]
[1737984262835,0.66397929,100920.0,100910.0,1e-06]
[1737984263037,1.13710555,100920.0,100910.0,1e-06]
[1737984263244,0.421662,100900.0,100890.0,6e-05]
[1737984263459,0.85667309,100900.0,100890.0,6e-05]
[1737984263714,0.77015741,100900.0,100890.0,6e-05]
[1737984263931,0.74006139,100900.0,100890.0,6e-05]
[1737984264140,0.90889329,100900.0,100890.0,6e-05]
[1737984264357,0.90889329,100900.0,100820.0,0.0150937]
[1737984264358,0.148765,100830.0,100820.0,0.0150937]
[1737984264566,0.34711,100840.0,100820.0,0.18027109]
[1737984264798,0.09734729,100830.0,100820.0,0.03149309]
[1737984265293,0.09734729,100830.0,100820.0,0.0150937]
[1737984265716,0.09734729,100830.0,100820.0,0.1638737]
[1737984265929,0.65891807,100830.0,100820.0,0.0150937]
[1737984266142,0.72995358,100830.0,100820.0,0.0150937]
[1737984266358,0.87721807,100830.0,100820.0,0.01496813]
[1737984266565,0.248809,100800.0,100790.0,0.0197083]
[1737984266774,0.148839,100780.0,100750.0,0.347453]
[1737984266990,0.1,100800.0,100790.0,0.148824]
[1737984267206,0.148851,100780.0,100750.0,0.278742]
[1737984267414,0.09734729,100800.0,100770.0,0.198468]
[1737984267646,0.09734729,100800.0,100780.0,0.347281]
[1737984267858,0.09734729,100800.0,100770.0,0.198468]
[1737984267859,0.09328847,100800.0,100790.0,0.195324]
[1737984268065,0.4,100840.0,100790.0,0.1488324]
[1737984268285,0.09734729,100830.0,100810.0,0.148785]
[1737984268502,0.09734729,100830.0,100820.0,0.14878]
[1737984268729,0.00049325,100840.0,100830.0,0.14849342]
[1737984268952,0.00049325,100840.0,100830.0,0.1478622]
[1737984269165,0.09784054,100840.0,100820.0,0.476437]
[1737984269378,0.09784054,100840.0,100830.0,0.18186518]
[1737984269593,0.00049325,100840.0,100830.0,0.298765]
[1737984269810,0.20825,100890.0,100850.0,0.198303]
[1737984269811,0.148693,100880.0,100850.0,0.198303]
[1737984270045,0.09734729,100870.0,100850.0,0.545326]
[1737984270262,0.148677,100890.0,100870.0,0.545236]
[1737984270482,0.09734729,100890.0,100880.0,0.148685]
[1737984270696,0.09734729,100890.0,100870.0,0.4964476]
[1737984270904,0.09734729,100890.0,100870.0,0.6451446]
[1737984271121,0.148662,100900.0,100880.0,0.346937]
[1737984271347,0.34602629,100890.0,100870.0,0.1258]
[1737984271558,0.148691,100880.0,100870.0,0.1259491]
[1737984271771,0.39603829,100880.0,100870.0,0.1258585]
[1737984271980,0.39603829,100880.0,100870.0,0.12540672]
[1737984272193,0.39603829,100880.0,100850.0,0.15590827]
[1737984272388,0.24605429,100870.0,100850.0,0.55251727]
[1737984272602,0.49709995,100880.0,100860.0,0.14872]
[1737984272838,0.48200832,100880.0,100860.0,0.347014]
[1737984273024,0.09734729,100870.0,100860.0,0.21884223]
[1737984273276,0.24606029,100870.0,100850.0,0.148733]
[1737984273478,0.15,100870.0,100860.0,0.14872]
[1737984274050,0.59393029,100870.0,100850.0,0.347029]
[1737984274809,0.43291903,100880.0,100860.0,0.14872]
[1737984274992,0.08596603,100880.0,100870.0,0.41101883]
[1737984275219,0.24618624,100880.0,100860.0,0.53287438]
[1737984275746,0.44444224,100880.0,100870.0,0.0001422]
[1737984276148,0.59444224,100880.0,100870.0,0.0001422]
[1737984277219,0.00014795,100880.0,100870.0,0.1488482]
[1737984277429,0.28400708,100920.0,100870.0,0.72767193]
[1737984277639,0.53013275,100920.0,100900.0,0.34687]
[1737984277843,0.24599929,100910.0,100890.0,0.60919883]
[1737984278062,0.64239129,100910.0,100890.0,0.148667]
[1737984278265,0.49373929,100910.0,100890.0,0.1833589]
[1737984278417,0.44419729,100910.0,100890.0,0.1833589]
[1737984278626,0.44419729,100910.0,100890.0,0.3815929]
[1737984278824,0.09734729,100910.0,100890.0,0.3815809]
[1737984279000,0.23461146,100920.0,100900.0,0.148662]
[1737984279201,0.18331475,100920.0,100910.0,0.148647]
[1737984279410,0.08596746,100920.0,100910.0,0.148647]
[1737984279634,0.00014938,100920.0,100910.0,0.148647]
[1737984279831,0.00014938,100920.0,100900.0,0.36519639]
[1737984280038,0.148647,100910.0,100890.0,0.346888]
[1737984280237,0.44420429,100910.0,100890.0,0.346891]
[1737984280503,0.148668,100900.0,100880.0,0.545171]
[1737984280653,0.44420729,100910.0,100890.0,0.148676]
[1737984280843,0.39652238,100920.0,100900.0,0.14866]
[1737984281031,0.24599429,100910.0,100890.0,0.346899]
[1737984281255,0.64239729,100910.0,100890.0,0.346899]
[1737984281509,0.64239729,100910.0,100870.0,0.21701946]
[1737984281510,0.148691,100880.0,100870.0,0.21701946]
[1737984281732,0.346934,100890.0,100870.0,0.1488472]
[1737984282095,0.64252929,100890.0,100870.0,0.3471222]
[1737984282293,0.148691,100880.0,100870.0,0.0001422]
[1737984282527,0.64252929,100890.0,100870.0,0.1488482]
[1737984282766,0.64252929,100890.0,100870.0,0.3471182]
[1737984282969,0.44428129,100890.0,100870.0,0.3471112]
[1737984283167,0.64253029,100890.0,100870.0,0.3471112]
[1737984283280,0.298687,100890.0,100880.0,0.148691]
[1737984283670,0.15,100890.0,100880.0,0.14851032]
[1737984283873,0.148671,100900.0,100870.0,0.26245503]
[1737984284045,0.24601829,100900.0,100880.0,0.346921]
[1737984284372,0.496887,100900.0,100880.0,0.545163]
[1737984284576,0.79246529,100900.0,100880.0,0.346932]
[1737984284778,0.64249729,100890.0,100870.0,0.41275934]
[1737984284956,0.44425929,100890.0,100880.0,0.148691]
[1737984285297,0.49383529,100890.0,100870.0,0.21450834]
[1737984285514,0.44426629,100890.0,100870.0,0.41277034]
[1737984285715,0.44426629,100890.0,100870.0,0.61104334]
[1737984285868,0.64251329,100890.0,100870.0,0.41277034]
[1737984286274,0.44426629,100890.0,100880.0,0.148691]
[1737984286679,0.148691,100880.0,100870.0,0.21450834]
[1737984286882,0.64252129,100890.0,100870.0,0.21450834]
[1737984287040,0.148691,100880.0,100870.0,0.1488472]
[1737984287239,0.64252129,100890.0,100870.0,0.1488472]
[1737984287439,0.64252129,100890.0,100880.0,0.5]
[1737984287440,0.44427129,100890.0,100880.0,0.5]
[1737984288243,0.148676,100890.0,100880.0,0.648691]
[1737984288482,0.148676,100890.0,100880.0,0.74603829]
[1737984288685,0.496899,100900.0,100880.0,1.14254629]
[1737984288866,0.496899,100900.0,100890.0,0.148676]
[1737984288867,0.15,100900.0,100890.0,0.148676]
[1737984289086,0.346865,100910.0,100900.0,0.148662]
[1737984289262,0.64241929,100910.0,100890.0,0.545134]
[1737984289464,0.09734729,100910.0,100900.0,0.148662]
[1737984289672,0.24599429,100910.0,100900.0,0.148662]
[1737984289830,0.346821,100920.0,100900.0,0.346874]
[1737984290034,0.00014938,100920.0,100910.0,0.41095983]
[1737984290927,0.00014938,100920.0,100910.0,0.148647]
[1737984291233,0.439672,100950.0,100930.0,0.148617]
[1737984291234,0.039672,100950.0,100930.0,0.148617]
[1737984291436,0.08631582,100950.0,100940.0,0.148603]
[1737984291851,0.08631582,100950.0,100940.0,0.24595029]
[1737984292061,0.08631582,100950.0,100940.0,0.370405]
[1737984292270,0.0006688,100980.0,100970.0,0.148558]
[1737984292420,0.00081809,100980.0,100970.0,0.148558]
[1737984292987,0.24670938,100980.0,100970.0,0.148558]
[1737984293197,0.24670938,100980.0,100970.0,0.24590529]
[1737984293477,0.14936309,100980.0,100970.0,0.148558]
[1737984293603,0.14936309,100980.0,100960.0,0.65847583]
[1737984293806,0.49429438,100980.0,100960.0,0.346647]
[1737984294009,0.64284638,100980.0,100960.0,0.346647]
[1737984294239,0.49429438,100980.0,100960.0,0.148566]
[1737984294418,0.34764749,100970.0,100950.0,0.346688]
[1737984294624,0.148573,100960.0,100940.0,0.87410854]
[1737984294993,0.148573,100960.0,100950.0,0.148588]
[1737984295194,0.148588,100950.0,100930.0,0.846754]
[1737984295432,0.346712,100950.0,100930.0,1.044898]
[1737984295667,0.00081809,100980.0,100940.0,0.26231283]
[1737984295861,0.24658394,100980.0,100960.0,0.34665]
[1737984296001,0.09734729,100970.0,100940.0,0.0499]
[1737984296204,0.14956849,100960.0,100940.0,0.198493]
[1737984296424,0.346706,100950.0,100940.0,0.148603]
[1737984296666,0.148588,100950.0,100940.0,0.24301233]
[1737984296877,0.59403229,100960.0,100940.0,0.24301233]
[1737984297005,0.24592029,100960.0,100950.0,0.148588]
[1737984297203,0.29545829,100960.0,100940.0,0.148603]
[1737984297429,0.24593529,100950.0,100940.0,0.148603]
[1737984297626,0.148588,100950.0,100940.0,0.2332773]
[1737984297839,0.44403929,100960.0,100950.0,0.148588]
[1737984298049,0.09734729,100960.0,100950.0,0.148588]
[1737984298462,0.24592029,100960.0,100950.0,0.148588]
[1737984299194,0.49357029,100960.0,100940.0,0.148603]
[1737984299401,0.24593529,100950.0,100940.0,0.148603]
[1737984299641,0.148588,100950.0,100940.0,0.2332774]
[1737984300034,0.24622712,100960.0,100950.0,0.148588]
[1737984300238,0.09764612,100960.0,100950.0,0.148588]
[1737984300376,0.00029883,100960.0,100950.0,0.148588]
[1737984300577,0.00029883,100960.0,100950.0,0.24593529]
[1737984301571,0.00068565,100980.0,100970.0,0.098558]
[1737984301776,0.00068565,100980.0,100970.0,0.65821812]
[1737984302196,0.00029904,100990.0,100980.0,0.158544]
[1737984302399,0.00029904,101020.0,101010.0,0.1485]
[1737984302600,0.00044827,101020.0,101010.0,0.26069729]
[1737984302812,0.00029904,101030.0,101010.0,0.42069729]
[1737984303022,0.00029883,101070.0,101060.0,0.148426]
[1737984303240,0.09764612,101070.0,101060.0,0.148426]
[1737984303452,0.00079638,101070.0,101060.0,0.148426]
[1737984303670,0.00079638,101070.0,101060.0,0.0742149]
[1737984303671,0.14920738,101070.0,101060.0,0.0742149]
[1737984303878,0.09913516,101070.0,101040.0,0.346376]
[1737984304129,0.09734729,101060.0,101050.0,0.148441]
[1737984304303,0.34810487,101070.0,101050.0,0.148441]
[1737984304304,0.44445967,101070.0,101050.0,0.148441]
[1737984304505,0.24656667,101070.0,101050.0,0.544272]
[1737984304712,0.44444967,101070.0,101050.0,0.346351]
[1737984304918,0.14941749,101060.0,101050.0,0.0544275]
[1737984305129,0.148426,101060.0,101050.0,0.0544275]
[1737984305336,0.24577329,101060.0,101050.0,0.0544275]
[1737984305540,0.00079638,101070.0,101060.0,0.148426]
[1737984305960,0.00079638,101070.0,101060.0,0.41073883]
[1737984307017,0.44446267,101070.0,101040.0,0.346375]
[1737984307230,0.148443,101050.0,101030.0,0.194264]
[1737984307437,0.148461,101040.0,101020.0,0.346443]
[1737984307640,0.14847,101030.0,101020.0,0.0443393]
[1737984307873,0.148452,101050.0,101030.0,0.148467]
[1737984308048,0.346403,101040.0,101020.0,0.3907843]
[1737984308255,0.14847,101030.0,101020.0,0.0443393]
[1737984308477,0.148485,101020.0,101010.0,0.01485]
[1737984308687,0.29534529,101020.0,100990.0,0.474452]
[1737984308893,0.09734729,101020.0,100990.0,0.27657323]
[1737984309130,0.144684,101000.0,100990.0,0.14867823]
[1737984309748,0.24203129,101000.0,100990.0,0.00014923]
[1737984310395,0.144684,101000.0,100990.0,0.00014923]
[1737984310598,0.148505,101010.0,100990.0,0.34669623]
[1737984310817,0.346505,101010.0,100990.0,0.40759714]
[1737984311046,0.69447,101020.0,101000.0,0.148512]
[1737984311292,0.09734729,101010.0,101000.0,0.148512]
[1737984311504,0.148501,101010.0,101000.0,0.148513]
[1737984311725,0.09734729,101010.0,101000.0,0.06056161]
[1737984311862,0.24584929,101010.0,100990.0,0.60561814]
[1737984312065,0.44384929,101010.0,100990.0,0.40759014]
[1737984312267,0.24685278,101000.0,100990.0,0.00014923]
[1737984312474,0.24576341,101000.0,100990.0,0.00014923]
[1737984312703,0.51876341,101000.0,100990.0,0.00014923]
[1737984313125,0.41876341,101000.0,100990.0,0.00014923]
[1737984313324,0.39576341,101000.0,100990.0,0.00014923]
[1737984313987,0.24724941,101000.0,100990.0,0.14867823]
[1737984314105,0.79586129,101000.0,100990.0,0.00014923]
[1737984314307,0.49586129,101000.0,100990.0,0.00014923]
[1737984314510,0.39586129,101000.0,100990.0,0.00014923]
[1737984314823,0.39586129,101000.0,100990.0,0.14867823]
[1737984315027,0.544522,101010.0,100990.0,0.37643915]
[1737984315208,0.64186929,101010.0,100990.0,0.37643915]
[1737984315414,0.44385929,101010.0,100990.0,0.57447715]
[1737984315622,0.44385929,101010.0,101000.0,0.148514]
[1737984315623,0.09734729,101010.0,101000.0,0.148514]
[1737984315833,0.148493,101020.0,101010.0,0.1485]
[1737984316048,0.34674115,101030.0,101010.0,0.2178026]
[1737984316248,0.29532729,101020.0,100990.0,0.02987115]
[1737984316495,0.44382129,101020.0,101000.0,0.148509]
[1737984316700,0.24584129,101020.0,101010.0,0.1485]
[1737984316850,0.59403,101010.0,100990.0,0.02987115]
[1737984317051,0.24685278,101000.0,100990.0,0.00014923]
[1737984317430,0.24586129,101000.0,100990.0,0.00014923]
[1737984317974,0.41886129,101000.0,100990.0,0.00014923]
[1737984318595,1.08087412,101000.0,100990.0,0.00014923]
[1737984318955,0.91856129,101000.0,100990.0,0.00014923]
[1737984319157,0.51886129,101000.0,100990.0,0.00014923]
[1737984322071,0.50574217,101000.0,100990.0,0.00014923]
[1737984322472,0.40574217,101000.0,100990.0,0.00014923]
[1737984322696,0.50574217,101000.0,100990.0,0.00014923]
[1737984323113,0.968055,101000.0,100990.0,0.00014923]
[1737984323326,1.03931216,101000.0,100990.0,2.3e-07]
[1737984323533,1.08731216,101000.0,100990.0,2.3e-07]
[1737984323953,0.716055,101000.0,100990.0,2.3e-07]
[1737984324184,1.136055,101000.0,100990.0,2.3e-07]
[1737984324365,1.146055,101000.0,100990.0,2.3e-07]
[1737984324570,1.15546811,101000.0,100990.0,7.3e-07]
[1737984324769,1.116055,101000.0,100990.0,7.3e-07]
[1737984325706,0.191544,100980.0,100970.0,0.0001415]
[1737984325936,0.70120412,100980.0,100970.0,0.0001415]
[1737984326128,0.70120412,100980.0,100930.0,0.5]
[1737984326129,0.171603,100940.0,100930.0,0.5]
[1737984326313,0.81994178,100940.0,100930.0,0.50049774]
[1737984326515,0.70126312,100940.0,100930.0,0.44104974]
[1737984326727,0.72310717,100940.0,100930.0,0.40141774]
[1737984326933,0.79220528,100940.0,100930.0,0.40141774]
[1737984327186,0.79220528,100940.0,100930.0,0.40158832]
[1737984327520,0.72094812,100940.0,100930.0,0.40158832]
[1737984327730,0.79220528,100940.0,100930.0,0.40158832]
[1737984327934,0.79220528,100940.0,100930.0,0.30250832]
[1737984328361,0.76279217,100940.0,100930.0,0.30250832]
[1737984328537,0.8615571,100940.0,100930.0,0.30250832]
[1737984328742,0.79029994,100940.0,100930.0,0.30250832]
[1737984328873,0.75106994,100940.0,100930.0,0.30250832]
[1737984329083,0.72094812,100940.0,100930.0,0.30250832]
[1737984329304,0.55863529,100940.0,100930.0,0.30250832]
[1737984329507,0.57863529,100940.0,100930.0,0.30250832]
[1737984329767,0.47863529,100940.0,100930.0,0.30250832]
[1737984329970,0.83563529,100940.0,100930.0,0.30250832]
[1737984330166,0.82688573,100940.0,100930.0,0.30250832]
[1737984330326,0.42688573,100940.0,100930.0,0.30250832]
[1737984330523,0.82688573,100940.0,100930.0,0.30250832]
[1737984330997,0.38720073,100940.0,100930.0,0.30250832]
[1737984331151,0.63720073,100940.0,100930.0,0.30250832]
[1737984331351,0.66020073,100940.0,100930.0,0.30250832]
[1737984331556,0.56020073,100940.0,100930.0,0.30250832]
[1737984331765,0.26020073,100940.0,100930.0,0.30250832]
[1737984332017,0.148603,100940.0,100930.0,0.48137315]
[1737984332234,0.039679,100950.0,100930.0,0.67951515]
[1737984332431,0.48515929,100950.0,100930.0,0.48137315]
[1737984332633,0.039679,100950.0,100930.0,0.87767815]
[1737984332763,0.148599,100950.0,100930.0,0.48137015]
[1737984332968,0.148603,100940.0,100930.0,0.48137615]
[1737984333172,0.148603,100940.0,100930.0,0.45112532]
[1737984334151,0.346678,100960.0,100940.0,0.148603]
[1737984334394,0.49355829,100960.0,100940.0,0.148603]
[1737984334595,0.34671,100950.0,100940.0,0.148603]
[1737984334797,0.148588,100950.0,100940.0,0.23351421]
[1737984335119,0.544749,100970.0,100950.0,0.346701]
[1737984335371,0.64209629,100970.0,100950.0,0.544809]
[1737984335586,0.64209629,100970.0,100950.0,0.346696]
[1737984335978,0.148573,100960.0,100950.0,0.14875858]
[1737984336135,0.24691178,100960.0,100950.0,0.0581934]
[1737984336346,0.41892029,100960.0,100950.0,0.00017058]
[1737984337215,1.08123312,100960.0,100950.0,0.00017058]
[1737984337502,0.79999028,100960.0,100950.0,8e-08]
[1737984337657,0.341603,100940.0,100930.0,0.24288982]
[1737984337862,0.82420717,100940.0,100930.0,0.24288982]
[1737984338062,0.85362028,100940.0,100930.0,0.16362582]
[1737984338295,0.85362028,100940.0,100930.0,0.0378283]
[1737984338296,1.12282028,100940.0,100930.0,0.0378283]
[1737984338494,0.98950717,100940.0,100930.0,0.0378283]
[1737984338699,0.99950717,100940.0,100930.0,0.0378283]
[1737984338870,0.76236312,100940.0,100930.0,0.0378283]
[1737984339178,0.76236312,100940.0,100930.0,3e-07]
[1737984339423,0.698662,100900.0,100890.0,0.0013415]
[1737984339589,0.79600929,100900.0,100890.0,0.00149079]
[1737984339796,0.39600929,100900.0,100890.0,0.00149079]
[1737984340353,0.51900929,100900.0,100890.0,0.00149079]
[1737984340532,0.41900929,100900.0,100890.0,0.00149079]
[1737984341387,0.71900929,100900.0,100890.0,0.00149079]
[1737984341566,0.73900929,100900.0,100890.0,0.00149079]
[1737984341792,0.52670929,100900.0,100890.0,0.00149079]
[1737984342011,0.728676,100890.0,100880.0,2.9e-07]
[1737984342167,0.61400383,100880.0,100870.0,4.9e-07]
[1737984342398,0.79090828,100880.0,100870.0,8.7e-07]
[1737984342720,0.298735,100850.0,100840.0,0.0001415]
[1737984342922,0.65839512,100850.0,100840.0,0.00028945]
[1737984343065,0.85733945,100850.0,100840.0,0.00028945]
[1737984343272,0.39608229,100850.0,100840.0,0.00028945]
[1737984343733,0.42792634,100850.0,100840.0,0.00028945]
[1737984344030,0.39608229,100850.0,100840.0,0.00028945]
[1737984344418,0.41908229,100850.0,100840.0,0.00028945]
[1737984344596,0.44888409,100850.0,100840.0,0.00028945]
[1737984344806,0.41908229,100850.0,100840.0,0.00028945]
[1737984345373,0.81908229,100850.0,100840.0,0.00028945]
[1737984346192,0.68139512,100850.0,100840.0,0.00028945]
[1737984346437,0.81908229,100850.0,100840.0,0.00028945]
[1737984347019,0.51908229,100850.0,100840.0,0.00028945]
[1737984347438,0.39608229,100850.0,100840.0,0.00028945]
[1737984348840,0.41908229,100850.0,100840.0,0.00028945]
[1737984349946,0.39608229,100850.0,100840.0,0.00028945]
[1737984350364,0.41908229,100850.0,100840.0,0.00028945]
[1737984351916,0.39608229,100850.0,100840.0,0.00028945]
[1737984352513,0.39608229,100850.0,100840.0,0.14903945]
[1737984352712,0.148735,100850.0,100840.0,0.2184882]
[1737984352923,0.545349,100860.0,100840.0,0.4168122]
[1737984353288,0.24608229,100850.0,100840.0,0.2184882]
[1737984353488,0.24608229,100850.0,100840.0,0.0697382]
[1737984353819,0.39608229,100850.0,100840.0,0.00028945]
[1737984354015,0.74366,100860.0,100840.0,0.00028945]
[1737984354016,0.198307,100860.0,100840.0,0.00028945]
[1737984354263,0.39607429,100860.0,100840.0,0.39692745]
[1737984354438,0.24707378,100850.0,100840.0,0.00028945]
[1737984354657,0.24608229,100850.0,100840.0,0.00028945]
[1737984354868,0.41908229,100850.0,100840.0,0.00028945]
[1737984356798,0.39608229,100850.0,100840.0,0.00028945]
[1737984357013,0.39608229,100850.0,100840.0,0.14903945]
[1737984357222,0.39608229,100850.0,100840.0,0.0350277]
[1737984357428,0.09734729,100850.0,100840.0,0.1837777]
[1737984357966,0.347036,100860.0,100850.0,0.148735]
[1737984358186,0.79268729,100860.0,100840.0,0.3820967]
[1737984358386,0.59438329,100860.0,100850.0,0.148735]
[1737984358593,0.79268829,100860.0,100840.0,0.5804207]
[1737984358755,0.39607929,100860.0,100850.0,0.148735]
[1737984359360,0.15,100860.0,100850.0,0.148735]
[1737984359571,0.29872,100860.0,100850.0,0.148735]
[1737984360751,0.171735,100850.0,100840.0,0.00028945]
[1737984360984,0.68238661,100850.0,100840.0,0.00028945]
[1737984361186,1.08139512,100850.0,100840.0,0.00028945]
[1737984361339,0.71080823,100850.0,100840.0,0.00028945]
[1737984361519,0.75061003,100850.0,100840.0,0.00028945]
[1737984362540,0.70107686,100850.0,100840.0,0.00028945]
[1737984362741,1.08139512,100850.0,100840.0,0.00028945]
[1737984362963,0.68139512,100850.0,100840.0,0.00028945]
[1737984363167,0.74061003,100850.0,100840.0,0.00028945]
[1737984363381,0.4,100840.0,100820.0,0.0001415]
[1737984363526,0.68241661,100830.0,100820.0,0.0001415]
[1737984363726,0.75064003,100830.0,100820.0,0.0001415]
[1737984365082,0.298824,100790.0,100780.0,0.0073623]
[1737984365283,0.68789723,100790.0,100780.0,0.0073623]
[1737984365485,0.68789723,100790.0,100750.0,6e-05]
[1737984365486,0.171868,100760.0,100750.0,6e-05]
[1737984365670,0.84173452,100760.0,100750.0,6e-05]
[1737984365864,0.78152812,100760.0,100750.0,6e-05]
[1737984366284,0.81992812,100760.0,100750.0,1e-06]
[1737984366483,0.298898,100740.0,100730.0,0.0021832]
[1737984366692,0.78930456,100740.0,100730.0,0.0021832]
[1737984366902,0.85210636,100740.0,100730.0,0.0021832]
[1737984367330,0.74210636,100740.0,100730.0,0.0021832]
[1737984367537,0.68155812,100740.0,100730.0,0.0021832]
[1737984367737,0.74210636,100740.0,100730.0,0.0021832]
[1737984367944,1.14210161,100740.0,100730.0,0.0021832]
[1737984368154,0.71135517,100740.0,100730.0,0.0021832]
[1737984368364,1.14210161,100740.0,100730.0,0.0021832]
[1737984368577,0.75210161,100740.0,100730.0,0.0021832]
[1737984368979,0.145821,100700.0,100690.0,0.07]
[1737984369182,0.67848112,100700.0,100690.0,0.07]
[1737984369442,0.67848112,100700.0,100690.0,0.10185632]
[1737984369748,0.24734729,100700.0,100690.0,0.218972]
[1737984369883,0.39630429,100700.0,100690.0,0.218972]
[1737984370092,0.09749582,100700.0,100690.0,0.218972]
[1737984370294,0.00014853,100700.0,100690.0,0.218972]
[1737984370965,0.00014853,100700.0,100690.0,0.48631929]
[1737984371190,0.00014853,100700.0,100690.0,0.72196658]
[1737984371356,0.347348,100770.0,100750.0,0.148875]
[1737984371560,0.24621529,100760.0,100740.0,0.347417]
[1737984371760,0.70703012,100760.0,100740.0,0.347417]
[1737984371987,0.148883,100750.0,100740.0,0.148898]
[1737984372184,0.24623029,100750.0,100740.0,0.2163257]
[1737984372392,0.148854,100770.0,100760.0,0.148864]
[1737984372588,0.09734729,100770.0,100760.0,0.148864]
[1737984373102,0.00014946,100780.0,100760.0,0.347338]
[1737984373407,0.09734729,100770.0,100760.0,0.148868]
[1737984373616,0.09734729,100770.0,100760.0,0.2233046]
[1737984373772,0.00014946,100780.0,100770.0,0.148853]
[1737984373976,0.09749675,100780.0,100770.0,0.148853]
[1737984374323,0.00014946,100780.0,100770.0,0.148853]
[1737984375913,0.00014946,100780.0,100770.0,0.277053]
[1737984376143,0.00014946,100780.0,100770.0,0.37440029]
[1737984376618,0.00014946,100780.0,100770.0,0.277053]
[1737984376849,0.46778775,100780.0,100760.0,0.347346]
[1737984377074,0.00014946,100780.0,100770.0,0.148853]
[1737984377524,0.00014946,100780.0,100770.0,0.14984526]
[1737984377720,0.00014946,100780.0,100770.0,0.39530758]
[1737984377927,0.00014946,100780.0,100770.0,0.59443869]
[1737984378322,0.86064983,100840.0,100770.0,0.59443869]
[1737984378323,0.42046099,100850.0,100820.0,0.14878]
[1737984378609,0.42046099,100850.0,100840.0,0.14875]
[1737984378610,0.0974967,100850.0,100840.0,0.14875]
[1737984378836,0.00014941,100850.0,100840.0,0.14875]
[1737984379035,0.00014941,100850.0,100840.0,0.39411851]
[1737984379314,0.00029758,100860.0,100850.0,0.148735]
[1737984379514,0.00029758,100860.0,100850.0,0.27714218]
[1737984379651,0.00029758,100860.0,100850.0,0.24608229]
[1737984379889,0.00029758,100860.0,100850.0,0.148735]
[1737984380165,0.00029758,100860.0,100850.0,0.2333554]